fUSD/lending_fUSD_20251112
["ID","MTS","AMOUNT","RATE_DAILY","PERIOD"]
[393780911,1762979440967,-32031.1558659,0.00037,5]
[393780912,1762979440976,-937.194,0.00037121,47]
[393780913,1762979440986,-14453.76,0.00037337,2]
[393780914,1762979440996,-166.66,0.00037351,30]
[393780915,1762979441006,-233.93239328,0.0003739,14]
[393780916,1762979441016,-300.0,0.00037451,2]
[393780917,1762979441025,-152.0,0.00037583,4]
[393780918,1762979441035,-36617.30981002,0.00037638,2]
[393780919,1762979441047,-20063.28599027,0.00037754,2]
[393780920,1762979441057,-435.76802525,0.00037754,15]
[393780921,1762979441066,-500.0,0.00037775,2]
[393780922,1762979441076,-5500.0,0.000379,13]
[393780923,1762979441086,-16426.22859991,0.0003797,2]
[393780924,1762979441095,-1501.95878155,0.00037999,3]
[393780925,1762979441104,-157446.79114713,0.00038,2]
[393780926,1762979441114,-76497.02472379,0.00038,2]
[393780927,1762979441123,-463.41812963,0.00038063,6]
[393780928,1762979441133,-2972.9,0.00038182,2]
[393780929,1762979441143,-235.31,0.00038408,2]
[393780930,1762979441153,-1205.08355555,0.000386,120]
[393780931,1762979441162,-679.37142996,0.00038631,2]
[393780932,1762979441172,-152.0,0.00038666,5]
[393780933,1762979441181,-1013.8261,0.00038871,2]
[393780934,1762979441191,-8300.0,0.000389,14]
[393780935,1762979441200,-399.84661035,0.000389,31]
[393780936,1762979441210,-166.19195656,0.00038952,12]
[393780937,1762979441220,-151.0,0.00038957,2]
[393780938,1762979441230,-151.0,0.00038957,2]
[393780939,1762979441240,-151.0,0.00038957,2]
[393780940,1762979441250,-151.0,0.00038957,2]
[393780941,1762979441260,-151.0,0.00038957,2]
[393780942,1762979441270,-151.0,0.00038957,2]
[393780943,1762979441279,-151.0,0.00038957,2]
[393780944,1762979441290,-151.0,0.00038957,2]
[393780945,1762979441300,-151.0,0.00038957,2]
[393780946,1762979441309,-151.0,0.00038957,2]
[393780947,1762979441319,-151.0,0.00038957,2]
[393780948,1762979441329,-151.0,0.00038957,2]
[393780949,1762979441339,-151.0,0.00038957,2]
[393780950,1762979441348,-151.0,0.00038957,2]
[393780951,1762979441359,-151.0,0.00038957,2]
[393780952,1762979441368,-151.0,0.00038957,2]
[393780953,1762979441377,-151.0,0.00038957,2]
[393780954,1762979441387,-151.0,0.00038957,2]
[393780955,1762979441397,-151.0,0.00038957,2]
[393780956,1762979441407,-151.0,0.00038957,2]
[393780957,1762979441418,-874.74,0.00038958,30]
[393780958,1762979441427,-500.0,0.0003898,2]
[393780959,1762979441437,-159.40146688,0.0003898,2]
[393780960,1762979441447,-420000.0,0.00038981,2]
[393780961,1762979441456,-66245.5790937,0.00039,7]
[393780962,1762979441466,-958.0,0.00039,7]
[393780963,1762979441475,-36617.30981002,0.00039029,2]
[393780964,1762979441485,-15154.7,0.00039061,2]
[393780965,1762979441495,-4204.59,0.00039081,2]
[393780966,1762979441505,-20063.28599027,0.00039087,2]
[393780967,1762979441515,-435.76802525,0.00039087,15]
[393780968,1762979441524,-3188.65635569,0.0003918,120]
[393780969,1762979441534,-2007.77,0.00039203,2]
[393780970,1762979441544,-874.74,0.00039232,30]
[393780971,1762979441555,-220.17213526,0.00039389,2]
[393780972,1762979441564,-235.31,0.00039464,2]
[393780973,1762979441574,-422.61,0.000395,120]
[393780974,1762979441584,-216.3,0.000395,120]
[393780975,1762979441594,-567.89816914,0.000395,2]
[393780976,1762979441603,-874.74,0.00039505,30]
[393780977,1762979441614,-260.0,0.00039511,4]
[393780978,1762979441623,-5000.0,0.00039517,120]
[393780979,1762979441632,-220.17213526,0.00039631,2]
[393780980,1762979441643,-152.0,0.0003975,6]
[393780981,1762979441655,-874.74,0.00039779,30]
[393780982,1762979441665,-688.0,0.00039788,120]
[393780983,1762979441675,-688.0,0.00039835,2]
[393780984,1762979441684,-11100.0,0.000399,14]
[393780985,1762979441695,-220.17213526,0.00039905,2]
[393780986,1762979441704,-1000.0,0.00039919,7]
[393780987,1762979441713,-268.34,0.00039922,2]
[393780988,1762979441724,-935.78775721,0.0004,120]
[393780989,1762979441734,-172.09582685,0.0004,2]
[393780990,1762979441743,-874.74,0.00040053,30]
[393780991,1762979441753,-5888.0,0.00040078,2]
[393780992,1762979441763,-2298.55471,0.000401,2]
[393780993,1762979441773,-316.47033406,0.0004012,2]
[393780994,1762979441783,-220.17213526,0.00040209,2]
[393780995,1762979441793,-13900.0,0.000403,14]
[393780996,1762979441802,-2298.55471,0.000403,3]
[393780997,1762979441812,-209.58677386,0.00040308,2]
[393780998,1762979441822,-280.0424,0.00040311,2]
[393780999,1762979441832,-1000.0,0.00040318,2]
[393781000,1762979441841,-209.58677384,0.00040327,2]
[393781001,1762979441851,-874.74,0.00040327,30]
[393781002,1762979441860,-209.58677384,0.00040345,2]
[393781003,1762979441870,-5800.0,0.00040347,14]
[393781004,1762979442052,-209.58677384,0.00040364,2]
[393781005,1762979442061,-209.58677384,0.00040383,2]
[393781006,1762979442071,-2700.0,0.000404,14]
[393781007,1762979442080,-313.87,0.000404,30]
[393781008,1762979442089,-209.58677384,0.00040401,2]
[393781009,1762979442098,-2152.0,0.00040408,5]
[393781010,1762979442108,-5321.3408,0.00040411,2]
[393781011,1762979442117,-33295.3526,0.00040416,2]
[393781012,1762979442126,-1000.0,0.00040416,2]
[393781013,1762979442136,-3002.4914,0.00040416,2]
[393781014,1762979442145,-999.0,0.00040417,120]
[393781015,1762979442154,-9998.9052,0.00040418,2]
[393781016,1762979442164,-209.58677384,0.0004042,2]
[393781017,1762979442173,-166.19195655,0.0004042,14]
[393781018,1762979442182,-36617.30981002,0.0004042,15]
[393781019,1762979442192,-20063.28599027,0.0004042,15]
[393781020,1762979442202,-435.76802525,0.0004042,15]
[393781021,1762979442211,-375.72356148,0.0004042,8]
[393781022,1762979442221,-1864.10171252,0.0004042,2]
[393781023,1762979442231,-322.92889213,0.0004042,2]
[393781024,1762979442241,-360.84756809,0.0004042,2]
[393781025,1762979442251,-679.37142996,0.0004042,28]
[393781026,1762979442260,-1597.0,0.00040463,2]
[393781027,1762979442269,-821.0,0.00040463,2]
[393781028,1762979442279,-1274.0,0.00040463,2]
[393781029,1762979442289,-813.0,0.00040463,2]
[393781030,1762979442298,-1189.0,0.00040463,2]
[393781031,1762979442307,-580.162,0.00040463,2]
[393781032,1762979442317,-6666.0,0.00040463,2]
[393781033,1762979442327,-3427.0,0.00040463,2]
[393781034,1762979442336,-608.0,0.00040463,2]
[393781035,1762979442346,-574.0,0.00040463,2]
[393781036,1762979442355,-503.16454672,0.00040467,2]
[393781037,1762979442364,-339.0,0.00040493,120]
[393781038,1762979442373,-500.0,0.00040494,15]
[393781039,1762979442382,-500.0,0.00040494,15]
[393781040,1762979442391,-500.0,0.00040494,15]
[393781041,1762979442400,-332.59097415,0.00040494,15]
[393781042,1762979442409,-150.0,0.000405,60]
[393781043,1762979442418,-2700.0,0.000405,14]
[393781045,1762979442427,-664.2,0.000405,14]
[393781046,1762979442436,-229.29448095,0.00040508,2]
[393781047,1762979442445,-414.28405495,0.00040508,2]
[393781048,1762979442454,-2298.55471,0.00040508,4]
[393781049,1762979442464,-220.81623409,0.00040509,7]
[393781050,1762979442473,-220.81623409,0.0004051,7]
[393781051,1762979442482,-97666.623374,0.00040511,2]
[393781053,1762979442492,-54118.7681759,0.00040511,2]
[393781055,1762979442501,-4307.5306653,0.00040511,2]
[393781056,1762979442512,-178383.8148929,0.00040511,2]
[393781057,1762979442522,-686.1580228,0.00040511,2]
[393781058,1762979442531,-500.0,0.00040517,2]
[393781059,1762979442540,-500.0,0.00040517,2]
[393781060,1762979442548,-500.0,0.00040517,2]
[393781061,1762979442557,-500.0,0.00040517,2]
[393781062,1762979442566,-500.0,0.00040517,2]
[393781063,1762979442576,-500.0,0.00040517,2]
[393781064,1762979442584,-500.0,0.00040517,2]
[393781065,1762979442593,-419.48,0.00040517,2]
[393781066,1762979442602,-500.0,0.00040517,7]
[393781067,1762979442611,-500.0,0.00040517,7]
[393781068,1762979442620,-500.0,0.00040517,7]
[393781069,1762979442630,-500.0,0.00040517,7]
[393781070,1762979442643,-500.0,0.00040517,7]
[393781071,1762979442653,-500.0,0.00040517,7]
[393781072,1762979442662,-550.62677967,0.00040517,20]
[393781073,1762979442671,-500.0,0.00040517,20]
[393781074,1762979442682,-500.0,0.00040517,20]
[393781075,1762979442691,-183.69568692,0.00040517,20]
[393781076,1762979442701,-572.45,0.00040517,20]
[393781077,1762979442710,-500.0,0.00040517,20]
[393781078,1762979442719,-500.0,0.00040517,20]
[393781079,1762979442728,-500.0,0.00040517,20]
[393781080,1762979442737,-500.0,0.00040517,20]
[393781081,1762979442747,-500.0,0.00040517,20]
[393781082,1762979442756,-500.0,0.00040517,20]
[393781083,1762979442765,-500.0,0.00040517,20]
[393781084,1762979442774,-500.0,0.00040517,20]
[393781085,1762979442783,-200.0,0.00040518,7]
[393781086,1762979442792,-478.56668374,0.00040518,120]
[393781087,1762979442801,-200.0,0.00040518,7]
[393781088,1762979442810,-185.84471793,0.00040518,7]
[393781089,1762979442820,-478.56668374,0.00040518,10]
[393781090,1762979442830,-478.56668374,0.00040518,7]
[393781091,1762979442839,-478.56668374,0.00040518,3]
[393781092,1762979442849,-300.0,0.00040519,10]
[393781093,1762979442859,-18603.0,0.00040519,2]
[393781094,1762979442869,-28992.8170453,0.00040519,29]
[393781095,1762979442879,-4655920.01168743,0.0004052,7]
[393781098,1762979443046,-507.08234434,0.00027999,2]
[393781100,1762979443055,-4292.91765566,0.0004052,7]
[393781105,1762979443103,-664.54481816,0.0004052,7]
[393781109,1762979443140,-18.32757162,0.0004052,7]
[393781111,1762979445691,-444.05,0.00040174,2]
[393781112,1762979445701,-83.82472817,0.00040519,2]
[393781113,1762979445713,-330.45932679,0.00040519,2]
[393781114,1762979445725,-229.29448095,0.00040519,2]
[393781115,1762979445734,-31453.67578643,0.0004052,7]
[393781116,1762979445748,-900.862616,0.0004052,7]
[393781117,1762979445760,-5319.23503509,0.0004052,7]
[393781118,1762979445914,-10740.91902,0.0004052,7]
[393781119,1762979446026,-1603.52876796,0.0004052,7]
[393781120,1762979446038,-9646.21012586,0.0004052,7]
[393781121,1762979446049,-560.42590785,0.0004052,7]
[393781122,1762979446065,-596.86146136,0.0004052,7]
[393781123,1762979446076,-3465.0,0.0004052,7]
[393781128,1762979531785,151.0,0.0004052,120]
[393781129,1762979532465,151.0,0.0004052,120]
[393781131,1762979533129,151.0,0.0004052,120]
[393781132,1762979533752,151.0,0.0004052,120]
[393781133,1762979534374,151.0,0.0004052,120]
[393781134,1762979535102,151.0,0.0004052,120]
[393781135,1762979535717,151.0,0.0004052,120]
[393781136,1762979536347,151.0,0.0004052,120]
[393781137,1762979536945,151.0,0.0004052,120]
[393781138,1762979537595,151.0,0.0004052,120]
[393781139,1762979538239,151.0,0.0004052,120]
[393781141,1762979827757,188.45,0.00016712,2]
[393781145,1762980007163,600.44,0.00013699,2]
[393781146,1762980144235,178.86,0.00027329,120]
[393781147,1762980527907,250.0,0.00017,2]
[393781148,1762980574126,-600.44,0.00020187,2]
[393781149,1762980574146,-1026.38406455,0.00020984,2]
[393781150,1762980574167,-250.0,0.00021084,2]
[393781151,1762980574187,-255.52244811,0.00021869,2]
[393781152,1762980574207,-273.36569996,0.00022106,2]
[393781153,1762980574227,-195.0,0.00022206,2]
[393781154,1762980574251,-250.0,0.00022206,2]
[393781155,1762980574271,-257.07887131,0.0002289,2]
[393781156,1762980574290,-273.36569996,0.00024446,2]
[393781157,1762980574310,-254.57228344,0.00026165,2]
[393781158,1762980574330,-600.44,0.00026676,2]
[393781159,1762980574350,-1000.0,0.00026722,2]
[393781160,1762980574370,-28.76656667,0.00026785,2]
[393781164,1762980631716,-244.59913329,0.00026785,2]
[393781165,1762980631726,-625.21960734,0.00026785,2]
[393781166,1762980631735,-250.0,0.00026801,2]
[393781167,1762980631744,-1200.0,0.00026816,2]
[393781168,1762980631754,-300.0,0.00026816,2]
[393781169,1762980631767,-300.0,0.00026816,2]
[393781170,1762980631776,-3851.87867097,0.00026817,2]
[393781171,1762980631787,-46554.90132903,0.00026817,2]
[393781172,1762980631796,-250.0,0.00026835,2]
[393781173,1762980631806,-501.35320613,0.00026873,2]
[393781174,1762980631815,-574.18497411,0.00026873,2]
[393781175,1762980631824,-500.0,0.00026873,2]
[393781176,1762980631833,-200.0,0.00026885,2]
[393781177,1762980631843,-34869.27830856,0.00027122,2]
[393781178,1762980631855,-166.66,0.0002714,2]
[393781179,1762980631864,-4224.12,0.00027345,2]
[393781180,1762980631874,-205.37512471,0.00027373,2]
[393781181,1762980631883,-500.0,0.00027373,2]
[393781182,1762980631893,-500.46545662,0.00027373,2]
[393781183,1762980631902,-638.7613927,0.00027373,2]
[393781184,1762980631912,-500.0,0.00027373,2]
[393781185,1762980631921,-500.0,0.00027373,2]
[393781186,1762980631930,-500.0,0.00027373,2]
[393781187,1762980631942,-500.0,0.00027373,2]
[393781188,1762980631952,-500.0,0.00027373,2]
[393781189,1762980631965,-500.0,0.00027373,2]
[393781190,1762980631974,-559.92231787,0.00027373,2]
[393781191,1762980631983,-500.65948408,0.00027373,2]
[393781192,1762980631994,-500.0,0.00027373,2]
[393781193,1762980632003,-200.0,0.00027373,2]
[393781194,1762980632013,-500.0,0.00027373,2]
[393781196,1762980632025,-379.52,0.00027387,2]
[393781198,1762980632035,-931.7,0.00027397,2]
[393781200,1762980632044,-768.05,0.00027397,2]
[393781202,1762980632054,-150.99,0.00027397,2]
[393781204,1762980632063,-61032.8,0.00027397,10]
[393781206,1762980632074,-999.99,0.00027397,2]
[393781208,1762980632083,-9999.99,0.00027397,2]
[393781209,1762980632093,-9999.99,0.00027397,2]
[393781210,1762980632104,-3328.58,0.00027397,2]
[393781211,1762980632115,-1591.21,0.00027397,2]
[393781212,1762980632124,-31929.76801921,0.00027397,2]
[393781215,1762980632136,-2582.67577394,0.00027397,2]
[393781217,1762980632147,-3839.66373871,0.00027397,2]
[393781240,1762980632322,-515.71559737,0.00027397,2]
[393781243,1762980632334,-1811.79123987,0.00027397,2]
[393781245,1762980632345,-1650.0,0.00027397,2]
[393781246,1762980632356,-5207.02539024,0.00027397,2]
[393781247,1762980632367,-4801.66140494,0.00027397,2]
[393781248,1762980632378,-1613.9502996,0.00027397,2]
[393781249,1762980632389,-4328.06566314,0.00027397,2]
[393781250,1762980632400,-13998.37791035,0.00027397,2]
[393781251,1762980632411,-605.71259571,0.00027397,2]
[393781252,1762980632422,-3115.61143538,0.00027397,2]
[393781253,1762980632433,-1644.61896634,0.00027397,2]
[393781254,1762980632444,-269.14624455,0.00027397,2]
[393781255,1762980632455,-780.71527075,0.00027397,2]
[393781256,1762980632466,-1475.08570537,0.00027397,2]
[393781257,1762980632477,-323.44091325,0.00027397,2]
[393781258,1762980632488,-1827.80383128,0.00027397,2]
[393781259,1762980632497,-9999.99,0.00027397,2]
[393781260,1762980632511,-9999.99,0.00027397,2]
[393781261,1762980632520,-1187.41,0.00027397,2]
[393781262,1762980632530,-322.45,0.00027397,2]
[393781263,1762980632540,-150.99,0.00027397,2]
[393781264,1762980632549,-1721.07,0.00027397,2]
[393781265,1762980632558,-515.44933032,0.00027421,5]
[393781266,1762980632567,-500.0,0.00027424,2]
[393781267,1762980632576,-372.40913642,0.00027455,2]
[393781268,1762980632587,-388.92086358,0.00027455,2]
[393781269,1762980632596,-911.45458073,0.00027732,2]
[393781270,1762980632606,-160.7909722,0.00027921,5]
[393781271,1762980632615,-1000.0,0.00027921,5]
[393781272,1762980632624,-500.50642645,0.00027921,5]
[393781273,1762980632633,-1000.0,0.00027921,5]
[393781274,1762980632646,-993.96542472,0.00027921,5]
[393781275,1762980632658,-6.03457528,0.00027921,5]
[393781276,1762980632668,-250.0,0.00027997,2]
[393781277,1762980632677,-500.0,0.00027999,2]
[393781278,1762980632687,-570.32987996,0.00027999,20]
[393781279,1762980632696,-500.0,0.00027999,20]
[393781280,1762980632707,-572.45,0.00027999,20]
[393781281,1762980632903,-323.68696904,0.00027999,20]
[393781282,1762980632915,-176.31303096,0.00027999,20]
[393781283,1762980632924,-500.0,0.00027999,20]
[393781284,1762980632933,-500.0,0.00027999,20]
[393781285,1762980632944,-551.61822093,0.00027999,20]
[393781286,1762980632953,-166.66,0.00028036,2]
[393781287,1762980632962,-400.0,0.00028058,5]
[393781288,1762980632972,-653.58,0.0002815,2]
[393781289,1762980632981,-1268.14325806,0.00028183,2]
[393781290,1762980632990,-151.0,0.00028361,2]
[393781291,1762980633000,-151.0,0.00028361,2]
[393781292,1762980633010,-151.0,0.00028361,2]
[393781293,1762980633021,-151.0,0.00028361,2]
[393781294,1762980633031,-151.0,0.00028361,2]
[393781295,1762980633049,-151.0,0.00028361,2]
[393781296,1762980633062,-151.0,0.00028361,2]
[393781297,1762980633072,-151.0,0.00028361,2]
[393781298,1762980633082,-151.0,0.00028361,2]
[393781299,1762980633092,-151.0,0.00028361,2]
[393781300,1762980633103,-151.0,0.00028361,2]
[393781301,1762980633113,-151.0,0.00028361,2]
[393781302,1762980633122,-151.0,0.00028361,2]
[393781303,1762980633132,-151.0,0.00028361,2]
[393781304,1762980633142,-151.0,0.00028361,2]
[393781305,1762980633151,-151.0,0.00028361,2]
[393781306,1762980633160,-151.0,0.00028361,2]
[393781307,1762980633170,-151.0,0.00028361,2]
[393781308,1762980633179,-151.0,0.00028361,2]
[393781309,1762980633189,-151.0,0.00028361,2]
[393781310,1762980633198,-742.07268955,0.00028378,2]
[393781311,1762980633215,-5673.0,0.00028378,2]
[393781312,1762980633227,-300.30200001,0.00028378,2]
[393781313,1762980633239,-342.68,0.00028378,2]
[393781314,1762980633253,-872.66531044,0.00028378,2]
[393781315,1762980633262,-104.42305551,0.00028468,5]
[393781316,1762980637695,-928.65261159,0.00028468,5]
[393781317,1762980637705,-517.97378222,0.00028468,5]
[393781318,1762980637717,-982.02621778,0.00028468,5]
[393781319,1762980637727,-1461.38138036,0.00028468,5]
[393781320,1762980637749,-38.61861964,0.00028468,5]
[393781321,1762980637759,-200.0,0.00028742,5]
[393781322,1762980637768,-2200.0,0.000288,10]
[393781323,1762980637778,-1052.97222922,0.0002889,3]
[393781324,1762980637805,-3062.37192109,0.0002889,3]
[393781325,1762980637816,-1109.46875634,0.0002889,3]
[393781326,1762980637827,-1030.04000014,0.0002889,3]
[393781327,1762980637838,-4867.58342401,0.0002889,3]
[393781328,1762980637848,-4400.0,0.000289,10]
[393781329,1762980637857,-166.66,0.00028932,2]
[393781330,1762980637866,-660.73611071,0.00028943,2]
[393781331,1762980637876,-420.0,0.00028997,2]
[393781332,1762980637885,-1500.0,0.00029016,5]
[393781333,1762980637894,-1500.0,0.00029016,5]
[393781334,1762980637904,-11122.4363308,0.0002906,3]
[393781335,1762980637913,-155.52662716,0.00029069,15]
[393781337,1762980637923,-165.28642323,0.000291,2]
[393781338,1762980637933,-1680.0,0.00029125,2]
[393781339,1762980637942,-478.56668374,0.0002913,2]
[393781340,1762980637952,-379.52,0.0002914,2]
[393781341,1762980637960,-379.52,0.00029149,2]
[393781342,1762980637970,-11122.4363308,0.00029151,3]
[393781344,1762980637979,-379.52,0.00029151,2]
[393781345,1762980637988,-379.52,0.00029151,2]
[393781347,1762980637997,-22244.8726616,0.00029153,3]
[393781348,1762980638008,-24489.16469499,0.00029159,3]
[393781349,1762980638022,-520.24222502,0.00029159,3]
[393781350,1762980638034,-295.56981299,0.00029159,3]
[393781352,1762980638046,-7550.38968645,0.00029159,3]
[393781354,1762980639739,-593.86495658,0.00029159,3]
[393781355,1762980639795,-926.43124995,0.00029159,3]
[393781356,1762980639807,-2822.21558554,0.00029159,3]
[393781357,1762980639818,-915.176505,0.00029159,3]
[393781358,1762980639829,-1638.33488677,0.00029159,3]
[393781359,1762980639840,-1526.8,0.00029159,3]
[393781360,1762980639855,-1838.00964857,0.00029159,3]
[393781361,1762980639871,-880.0301178,0.00029159,3]
[393781362,1762980639913,-493.51595364,0.00029159,3]
[393781363,1762980639923,-7733.48064278,0.0002916,3]
[393781364,1762980639934,-504.28224,0.0002916,3]
[393781365,1762980639945,-329.0207687,0.0002916,3]
[393781366,1762980639956,-2172.95400006,0.0002916,3]
[393781367,1762980639967,-19998.65213997,0.0002916,3]
[393781368,1762980639978,-502.7286811,0.0002916,3]
[393781369,1762980639989,-1790.63889927,0.0002916,3]
[393781370,1762980640000,-2894.53588966,0.0002916,3]
[393781371,1762980640012,-298.03343934,0.0002916,3]
[393781372,1762980640035,-33821.74515768,0.0002916,3]
[393781373,1762980640145,-107912.90943444,0.0002916,3]
[393781374,1762980640154,-500.0,0.0002917,20]
[393781375,1762980640163,-500.0,0.0002917,7]
[393781376,1762980640172,-500.0,0.0002917,20]
[393781377,1762980640182,-550.62677967,0.0002917,20]
[393781378,1762980640191,-500.0,0.00029173,5]
[393781379,1762980640201,-500.0,0.00029173,5]
[393781380,1762980640210,-160.95119521,0.00029173,5]
[393781381,1762980640219,-500.0,0.00029173,5]
[393781382,1762980640228,-501.05520094,0.00029173,5]
[393781383,1762980640237,-166.73362346,0.00029173,5]
[393781384,1762980640247,-326.51647096,0.00029173,5]
[393781385,1762980640257,-501.29157075,0.00029173,5]
[393781386,1762980640266,-346.48749089,0.00029173,5]
[393781387,1762980640275,-499.60830963,0.00029173,5]
[393781388,1762980640284,-150.00946095,0.00029173,5]
[393781389,1762980640294,-500.0,0.00029173,5]
[393781390,1762980640303,-1142.43,0.00029173,14]
[393781391,1762980640312,-190.26915721,0.00029179,2]
[393781392,1762980640322,-500.0,0.00029179,2]
[393781393,1762980640332,-500.0,0.00029179,2]
[393781394,1762980640341,-326.91765194,0.00029179,2]
[393781395,1762980640351,-500.87988058,0.00029179,2]
[393781396,1762980640361,-500.0,0.00029179,2]
[393781397,1762980640370,-500.0,0.00029179,2]
[393781398,1762980640380,-500.0,0.00029179,2]
[393781399,1762980640389,-500.87988058,0.00029179,2]
[393781400,1762980640399,-500.0,0.00029179,2]
[393781401,1762980640408,-500.87988058,0.00029179,2]
[393781402,1762980640418,-432.98513831,0.00029179,2]
[393781403,1762980640429,-500.87988058,0.00029179,2]
[393781404,1762980640438,-363.37399229,0.00029179,2]
[393781405,1762980640447,-500.87988058,0.00029179,2]
[393781406,1762980640457,-500.87988058,0.00029179,2]
[393781407,1762980640467,-500.87988058,0.00029179,2]
[393781408,1762980640476,-500.87988058,0.00029179,2]
[393781409,1762980640486,-500.87988058,0.00029179,2]
[393781410,1762980640495,-500.87988058,0.00029179,2]
[393781411,1762980640507,-500.87988058,0.00029179,2]
[393781412,1762980640516,-500.87988058,0.00029179,2]
[393781413,1762980640526,-500.87988058,0.00029179,2]
[393781414,1762980640535,-500.87988058,0.00029179,2]
[393781415,1762980640545,-500.87988058,0.00029179,2]
[393781416,1762980640556,-500.87988058,0.00029179,2]
[393781417,1762980640566,-500.87988058,0.00029179,2]
[393781418,1762980640576,-500.87988058,0.00029179,2]
[393781419,1762980640586,-500.87988058,0.00029179,2]
[393781420,1762980640595,-500.87988058,0.00029179,2]
[393781421,1762980640606,-500.87988058,0.00029179,2]
[393781422,1762980640615,-500.87988058,0.00029179,2]
[393781423,1762980640625,-500.87988058,0.00029179,2]
[393781424,1762980640635,-500.87988058,0.00029179,2]
[393781425,1762980640644,-500.87988058,0.00029179,2]
[393781426,1762980640654,-500.87988058,0.00029179,2]
[393781427,1762980640664,-500.87988058,0.00029179,2]
[393781428,1762980640674,-500.87988058,0.00029179,2]
[393781429,1762980640684,-500.87988058,0.00029179,2]
[393781430,1762980640694,-500.87988058,0.00029179,2]
[393781431,1762980640703,-500.87988058,0.00029179,2]
[393781432,1762980640712,-500.87988058,0.00029179,2]
[393781433,1762980640722,-500.87988058,0.00029179,2]
[393781434,1762980640731,-500.87988058,0.00029179,2]
[393781435,1762980640741,-500.87988058,0.00029179,2]
[393781436,1762980640751,-500.87988058,0.00029179,2]
[393781437,1762980640762,-500.87988058,0.00029179,2]
[393781438,1762980640772,-500.87988058,0.00029179,2]
[393781439,1762980640781,-500.87988058,0.00029179,2]
[393781440,1762980640793,-500.87988058,0.00029179,2]
[393781441,1762980640803,-500.87988058,0.00029179,2]
[393781442,1762980640813,-500.87988058,0.00029179,2]
[393781443,1762980640822,-500.87988058,0.00029179,2]
[393781444,1762980640831,-500.87988058,0.00029179,2]
[393781445,1762980640840,-500.87988058,0.00029179,2]
[393781446,1762980640849,-500.87988058,0.00029179,2]
[393781447,1762980640858,-500.87988058,0.00029179,2]
[393781448,1762980640868,-500.87988058,0.00029179,2]
[393781449,1762980640877,-500.87988058,0.00029179,2]
[393781450,1762980640886,-500.87988058,0.00029179,2]
[393781451,1762980640895,-500.0,0.00029179,2]
[393781452,1762980640904,-500.0,0.00029179,2]
[393781453,1762980640913,-500.0,0.00029179,2]
[393781454,1762980640922,-500.0,0.00029179,2]
[393781455,1762980640931,-500.0,0.00029179,2]
[393781456,1762980640940,-500.0,0.00029179,2]
[393781457,1762980640950,-500.0,0.00029179,2]
[393781458,1762980640959,-500.0,0.00029179,2]
[393781459,1762980640968,-500.0,0.00029179,2]
[393781460,1762980640977,-500.0,0.00029179,2]
[393781461,1762980640986,-500.0,0.00029179,2]
[393781462,1762980640995,-500.0,0.00029179,2]
[393781463,1762980641006,-500.0,0.00029179,2]
[393781464,1762980641014,-500.0,0.00029179,2]
[393781465,1762980641029,-500.0,0.00029179,2]
[393781466,1762980641038,-500.0,0.00029179,2]
[393781467,1762980641047,-500.0,0.00029179,2]
[393781468,1762980641056,-500.0,0.00029179,2]
[393781469,1762980641067,-500.0,0.00029179,2]
[393781470,1762980641076,-500.0,0.00029179,2]
[393781471,1762980641084,-500.0,0.00029179,2]
[393781472,1762980641094,-500.0,0.00029179,2]
[393781473,1762980641103,-500.0,0.00029179,2]
[393781474,1762980641112,-500.0,0.00029179,2]
[393781475,1762980641121,-500.0,0.00029179,2]
[393781476,1762980641131,-500.0,0.00029179,2]